bitfinex-derivatives/quotes_SOLF0:USTF0_20250821
["timestamp","ask_amount","ask_price","bid_price","bid_amount"]
[1755820032544,3.05,180.08,180.06,2.96]
[1755820033046,9.15862324,180.15,180.06,2.96]
[1755820033347,3.05,180.13,180.06,2.96]
[1755820033547,4.08444624,180.12,180.06,2.96]
[1755820033745,7.13444624,180.11,180.07,2.96]
[1755820034043,4.08444624,180.1,180.07,2.96]
[1755820034243,4.08444624,180.09,180.06,5.5545]
[1755820034444,3.05,180.11,180.08,2.96]
[1755820034636,0.04244364,180.12,180.11,2.96]
[1755820034842,4.08671644,180.12,180.11,2.96]
[1755820038741,4.08671644,180.12,180.07,3.05515798]
[1755820039045,4.05420272,180.11,180.09,2.96]
[1755820039247,3.05,180.12,180.09,2.96]
[1755820039445,4.05429963,180.11,180.09,2.96]
[1755820039641,3.05515798,180.16,180.06,5.5546]
[1755820039844,3.05,180.09,180.06,2.96]
[1755820042048,3.05515798,180.14,180.06,2.96]
[1755820042248,3.05,180.12,180.06,2.96]
[1755820042541,4.05374298,180.11,180.06,2.96]
[1755820042743,3.05,180.08,180.06,2.96]
[1755820045246,3.02,180.1,180.06,2.96]
[1755820045453,7.07372818,180.09,180.06,2.96]
[1755820045651,3.02,180.09,180.06,2.96]
[1755820045952,3.02,180.09,180.06,8.5148]
[1755820047253,3.02,180.13,180.06,8.4548]
[1755820047452,4.05382542,180.12,180.06,8.4548]
[1755820047647,3.02,180.1,180.07,2.9]
[1755820047852,4.05382542,180.09,180.07,2.9]
[1755820048055,3.02,180.1,180.07,2.9]
[1755820048252,4.05378536,180.09,180.07,2.9]
[1755820048447,3.02,180.09,180.07,2.9]
[1755820051754,3.02,180.13,180.07,2.9]
[1755820052054,3.02,180.11,180.04,2.9]
[1755820052251,4.05371044,180.1,180.04,8.4552]
[1755820052456,3.02,180.08,180.05,2.9]
[1755820052651,3.02,180.08,180.02,138.79515798]
[1755820052857,3.02,180.11,180.05,8.4549]
[1755820053048,4.05373607,180.1,180.05,5.5549]
[1755820053247,7.07373607,180.09,180.06,2.9]
[1755820053447,3.02,180.09,180.06,2.9]
[1755820053650,3.02,180.09,180.02,138.79515798]
[1755820053651,3.02,180.08,180.03,8.4554]
[1755820053851,7.07267099,180.07,180.03,5.5554]
[1755820054058,3.02,180.07,180.04,2.9]
[1755820054259,3.02,180.07,180.05,2.9]
[1755820055462,7.07322857,180.06,180.03,2.9]
[1755820055659,3.02,180.05,180.03,2.9]
[1755820055858,3.02,180.09,180.03,2.9]
[1755820056058,3.02,180.07,180.03,2.9]
[1755820056261,7.07324272,180.06,180.03,2.9]
[1755820056457,3.05515798,180.1,180.02,135.74]
[1755820056659,3.02,180.08,180.02,135.74]
[1755820056961,3.02,180.05,180.02,135.74]
[1755820057162,3.02,180.04,180.01,2.9]
[1755820058765,3.02,180.03,180.01,2.9]
[1755820061169,3.02,180.02,179.99,138.64]
[1755820061361,0.03574316,180.04,180.01,2.9]
[1755820061566,3.05574316,180.04,180.01,2.9]
[1755820062162,0.03574316,180.04,180.0,2.9]
[1755820062970,0.03574316,180.04,180.02,5.556]
[1755820063168,0.03574316,180.04,180.03,2.9]
[1755820063664,0.03574316,180.04,180.03,11.51085798]
[1755820068075,3.02,180.16,180.08,2.9]
[1755820068273,3.02,180.14,180.08,2.9]
[1755820068473,9.15862324,180.17,180.09,2.9]
[1755820068474,3.02,180.12,180.09,2.9]
[1755820068771,4.03584115,180.11,180.09,2.9]
[1755820068973,4.03614348,180.1,180.09,2.9]
[1755820069369,3.02,180.15,180.1,2.9]
[1755820069566,3.02,180.19,180.11,3.05515798]
[1755820069767,4.03707678,180.18,180.12,2.9]
[1755820069963,4.03707678,180.18,180.11,3.05515798]
[1755820069964,3.02,180.16,180.11,3.05515798]
[1755820070165,3.02,180.14,180.13,0.04099027]
[1755820070577,3.02,180.2,180.13,0.04099027]
[1755820070772,3.02,180.18,180.13,0.04099027]
[1755820070974,3.02,180.16,180.13,0.04099027]
[1755820071175,3.02,180.14,180.13,0.04099027]
[1755820076183,2.82,180.19,180.13,0.04099027]
[1755820076478,2.82,180.16,180.13,2.86099027]
[1755820076678,2.82,180.15,180.13,2.86099027]
[1755820076975,2.82,180.15,180.13,0.04099027]
[1755820077177,2.82,180.19,180.13,0.04099027]
[1755820077380,2.82,180.17,180.13,0.04099027]
[1755820077673,2.82,180.15,180.13,0.04099027]
[1755820077881,2.82,180.14,180.13,0.04099027]
[1755820081980,6.79061936,180.14,180.13,0.04099027]
[1755820088487,10.40577734,180.14,180.07,5.5544]
[1755820088689,2.82,180.12,180.07,5.5544]
[1755820088889,3.05515798,180.14,180.06,135.7]
[1755820089094,2.82,180.1,180.06,138.52]
[1755820089487,2.82,180.09,180.06,141.2546]
[1755820089690,2.82,180.09,180.07,2.82]
[1755820089888,0.03561696,180.1,180.06,135.7]
[1755820090094,2.82,180.09,180.06,135.7]
[1755820090299,0.03561696,180.1,180.06,135.7]
[1755820090300,2.82,180.08,180.06,135.7]
[1755820090497,2.82,180.07,180.06,135.7]
[1755820091800,2.82,180.09,180.07,2.82]
[1755820092299,2.82,180.09,180.06,138.52]
[1755820092801,2.82,180.09,180.06,2.82]
[1755820092998,2.82,180.08,180.03,2.82]
[1755820093199,0.03561696,180.1,180.04,2.82]
[1755820093497,2.82,180.05,180.01,2.82]
[1755820093698,6.10346526,180.15,179.99,138.75515798]
[1755820093699,2.82,180.04,179.99,138.75515798]
[1755820093997,0.03813545,180.05,180.02,2.82]
[1755820095603,2.82,180.04,180.01,2.82]
[1755820096003,2.82,180.03,179.97,508.88]
[1755820096308,0.03813545,180.05,179.98,8.377]
[1755820096506,0.03813545,180.05,179.99,2.82]
[1755820097506,0.03813545,180.05,179.99,8.377]
[1755820098008,2.82,180.04,179.99,2.82]
[1755820098209,2.82,180.04,180.01,2.82]
[1755820100108,2.82,180.04,179.98,2.82]
[1755820100709,2.82,180.04,179.99,5.5569]
[1755820100916,2.82,180.04,180.01,2.82]
[1755820102310,0.03813545,180.05,180.0,5.87515798]
[1755820102511,0.03813545,180.05,180.0,3.05515798]
[1755820102714,0.03813545,180.05,180.01,2.82]
[1755820102914,0.03813545,180.05,180.0,5.5566]
[1755820103117,0.03813545,180.05,180.03,3.03]
[1755820104321,0.03813545,180.05,179.98,3.05515798]
[1755820104522,0.03813545,180.05,180.04,3.03]
[1755820105422,0.03813545,180.05,179.98,3.05515798]
[1755820105621,0.03813545,180.05,180.03,3.03]
[1755820105818,0.03813545,180.05,180.04,3.03]
[1755820112831,0.03813545,180.05,180.01,3.03]
[1755820113128,0.03813545,180.05,180.03,3.03]
[1755820113526,0.03813545,180.05,180.01,5.5563]
[1755820113730,0.03813545,180.05,180.03,3.03]
[1755820113929,0.03813545,180.05,180.04,3.03]
[1755820122440,3.04,180.13,180.05,3.03]
[1755820122638,3.95023296,180.12,180.05,3.03]
[1755820122834,3.95023296,180.11,180.05,3.03]
[1755820123038,3.95023296,180.1,180.05,3.03]
[1755820123233,3.04,180.13,180.06,5.5546]
[1755820123539,3.95146835,180.12,180.07,3.03]
[1755820123739,3.95146835,180.11,180.09,3.03]
[1755820124038,3.95146835,180.1,180.09,3.03]
[1755820124240,6.99146835,180.12,180.09,3.03]
[1755820124442,3.95146835,180.11,180.09,3.03]
[1755820127939,3.95146835,180.11,180.08,0.04085942]
[1755820128142,3.95146835,180.11,180.09,3.03]
[1755820128339,3.95146835,180.11,180.1,3.03]
[1755820128540,3.04,180.13,180.1,3.03]
[1755820128738,3.95146835,180.12,180.1,3.03]
[1755820129539,3.95146835,180.11,180.1,3.03]
[1755820129734,3.95146835,180.12,180.1,3.03]
[1755820129939,3.95146835,180.11,180.1,3.03]
[1755820130236,3.95146835,180.12,180.1,3.03]
[1755820130442,3.95146835,180.11,180.1,3.03]
[1755820131138,3.95146835,180.12,180.1,3.03]
[1755820131343,3.95146835,180.11,180.1,3.03]
[1755820131640,3.95146835,180.12,180.1,3.03]
[1755820131834,3.95146835,180.11,180.1,3.03]
[1755820132033,3.95146835,180.12,180.1,3.03]
[1755820132233,3.95146835,180.11,180.1,3.03]
[1755820132443,3.95146835,180.12,180.1,3.03]
[1755820132641,3.95146835,180.11,180.1,3.03]
[1755820132842,3.95146835,180.12,180.1,3.03]
[1755820133041,3.95146835,180.11,180.1,3.03]
[1755820133242,3.95146835,180.12,180.1,3.03]
[1755820133444,3.95146835,180.11,180.1,3.03]
[1755820133644,3.95146835,180.12,180.1,3.03]
[1755820133845,3.07,180.17,180.09,2.82]
[1755820134038,3.95565882,180.16,180.09,5.5537]
[1755820134240,7.02565882,180.15,180.12,2.82]
[1755820134446,3.95565882,180.14,180.12,2.82]
[1755820134646,3.95565882,180.13,180.11,2.82]
[1755820134842,3.95565882,180.12,180.11,2.82]
[1755820135043,3.95565882,180.12,180.11,2.85934747]
[1755820135842,3.07,180.15,180.11,2.85934747]
[1755820136047,3.95473926,180.14,180.12,2.82]
[1755820136248,7.02473926,180.13,180.11,2.85934747]
[1755820136443,3.05515798,180.16,180.11,0.03934747]
[1755820136749,3.9539286,180.15,180.11,0.03934747]
[1755820136953,7.0239286,180.14,180.07,2.82]
[1755820137248,3.07,180.12,180.11,0.03942822]
[1755820137443,7.0239286,180.12,180.11,0.03942822]
[1755820140650,3.9539286,180.12,180.11,2.85942822]
[1755820142853,3.9539286,180.12,180.11,0.03942822]
[1755820143949,7.0239286,180.12,180.11,0.03942822]
[1755820148451,10.07908658,180.12,180.11,0.03942822]
[1755820148650,7.00908658,180.12,180.04,2.82]
[1755820148954,7.0239286,180.11,180.04,8.3753]
[1755820149154,3.9539286,180.1,180.04,2.82]
[1755820149354,3.07,180.1,180.04,2.82]
[1755820149854,3.9891114,180.09,180.04,2.82]
[1755820150051,3.07,180.07,180.01,138.46]
[1755820153056,3.07,180.07,180.01,144.0163]
[1755820154256,0.03556804,180.09,180.03,2.82]
[1755820154452,0.03556804,180.09,180.03,5.87515798]
[1755820154756,0.03556804,180.09,180.04,8.3754]
[1755820155055,0.03556804,180.09,180.05,2.82]
[1755820155251,0.03556804,180.09,180.04,5.5554]
[1755820155452,0.03556804,180.09,180.08,2.82]
[1755820157157,0.03556804,180.09,180.04,3.05515798]
[1755820157453,7.03424492,180.08,180.02,2.82]
[1755820157656,3.07,180.08,180.02,2.82]
[1755820162250,0.03556804,180.09,180.02,2.82]
[1755820162458,3.96534049,180.08,180.02,2.82]
[1755820162656,0.03556804,180.09,180.02,2.82]
[1755820162852,3.96557058,180.08,180.02,5.87515798]
[1755820163154,3.00556804,180.09,180.03,2.86]
[1755820163452,3.96566396,180.08,180.02,3.05515798]
[1755820163756,2.97,180.08,180.05,2.86]
[1755820164050,0.03556804,180.09,180.06,2.86]
[1755820164257,0.03556804,180.09,180.01,135.64]
[1755820164258,0.03556804,180.09,180.04,3.05515798]
[1755820164456,0.03556804,180.09,180.06,2.86]
[1755820164659,0.03556804,180.09,180.03,3.05515798]
[1755820165158,0.03556804,180.09,180.06,2.86]
[1755820166058,0.03556804,180.09,180.07,2.86]
[1755820166859,3.00556804,180.09,180.07,2.86]
[1755820167962,2.97,180.08,180.05,2.86]
[1755820168261,0.03556804,180.09,180.05,2.86]
[1755820168456,2.97,180.07,180.05,2.86]
[1755820169262,2.97,180.07,180.02,5.5559]
[1755820169758,2.97,180.07,180.04,2.86]
[1755820170262,0.03556804,180.09,180.03,8.4157]
[1755820170561,3.96736637,180.08,180.03,5.5557]
[1755820170756,3.00556804,180.09,180.06,2.86]
[1755820170957,3.96702805,180.08,180.06,2.86]
[1755820171257,3.00556804,180.09,180.06,2.86]
[1755820171458,3.96693953,180.08,180.06,2.86]
[1755820171663,3.00556804,180.09,180.06,2.86]
[1755820171862,3.96659753,180.08,180.06,2.86]
[1755820172163,3.00556804,180.09,180.06,2.86]
[1755820172463,3.96668449,180.08,180.06,2.86]
[1755820172756,0.03556804,180.09,180.06,2.86]
[1755820172959,6.93656873,180.08,180.06,2.86]
[1755820173158,2.97,180.08,180.06,2.86]
[1755820173965,3.00556804,180.09,180.06,2.86]
[1755820174264,3.96651787,180.08,180.06,2.86]
[1755820174466,3.00556804,180.09,180.06,2.86]
[1755820174665,3.96667963,180.08,180.06,2.86]
[1755820174962,3.00556804,180.09,180.06,2.86]
[1755820175160,0.03556804,180.09,180.04,5.5554]
[1755820175359,0.03556804,180.09,180.06,2.86]
[1755820175666,0.03556804,180.09,180.08,2.86]
[1755820175963,3.00556804,180.09,180.05,2.86]
[1755820176163,3.00556804,180.09,180.04,3.05515798]
[1755820176360,3.96687288,180.08,180.06,2.86]
[1755820176662,0.03556804,180.09,180.04,2.86]
[1755820176663,2.97,180.07,180.04,2.86]
[1755820179465,3.96763985,180.06,180.04,2.86]
[1755820179662,0.03556804,180.09,180.01,141.1963]
[1755820179868,2.97,180.05,180.02,2.86]
[1755820180064,2.97,180.08,180.02,2.86]
[1755820180264,3.96763985,180.07,180.01,2.86]
[1755820180566,0.03804896,180.05,180.03,2.86]
[1755820180763,0.03804896,180.05,179.97,373.18]
[1755820180958,2.97,180.0,179.94,3.82647874]
[1755820181166,2.97,179.98,179.9,138.67515798]
[1755820181359,2.97,179.98,179.95,2.86]
[1755820181764,2.97,180.0,179.96,2.86]
[1755820181966,3.96340856,179.99,179.96,2.86]
[1755820182168,0.042031,179.98,179.97,2.86]
[1755820182664,2.97,180.01,179.97,2.86]
[1755820182967,0.03956177,179.99,179.97,2.86]
[1755820184966,0.03956177,179.99,179.94,3.05515798]
[1755820185172,3.00956177,179.99,179.96,2.86]
[1755820186861,0.03956177,179.99,179.93,3.05515798]
[1755820187066,0.03956177,179.99,179.98,2.86]
[1755820187667,0.03956177,179.99,179.96,2.86]
[1755820187867,0.03956177,179.99,179.94,2.86]
[1755820188064,0.03956177,179.99,179.97,2.86]
[1755820188271,0.03956177,179.99,179.98,2.86]
[1755820192769,0.03956177,179.99,179.98,5.91515798]
[1755820194976,0.03956177,179.99,179.98,11.47245798]
[1755820195275,0.03956177,179.99,179.98,5.91515798]
[1755820197671,0.03956177,179.99,179.98,11.47245798]
[1755820199479,0.03956177,179.99,179.98,5.91515798]
[1755820199677,2.97,180.05,179.98,5.91515798]
[1755820199883,2.97,180.05,180.0,3.05515798]
[1755820200174,7.07034679,180.13,179.98,3.05515798]
[1755820200175,2.94,180.07,179.98,3.05515798]
[1755820200375,2.94,180.05,179.98,3.05515798]
[1755820200580,2.94,180.05,179.99,2.9]
[1755820200783,2.94,180.05,179.98,3.05515798]
[1755820200784,2.94,180.08,180.01,2.9]
[1755820201078,3.92828053,180.07,180.04,2.9]
[1755820201380,2.94,180.08,180.04,2.9]
[1755820201880,2.94,180.08,180.04,2.93909602]
[1755820202075,2.94,180.07,180.04,2.93909602]
[1755820202572,2.94,180.1,180.05,2.9]
[1755820202779,2.94,180.08,180.05,2.9]
[1755820202976,2.94,180.11,180.04,5.994254]
[1755820203272,3.93141028,180.1,180.04,5.994254]
[1755820203475,6.87141028,180.09,180.05,2.9]
[1755820203677,2.94,180.09,180.05,2.9]
[1755820203877,2.94,180.09,180.06,2.9]
[1755820209583,2.94,180.09,180.05,0.04006659]
[1755820209781,2.94,180.09,180.06,2.9]
[1755820210479,2.94,180.09,180.05,0.04006659]
[1755820210679,3.05515798,180.14,180.07,2.9]
[1755820210877,6.87328059,180.13,180.06,5.95515798]
[1755820211080,3.93328059,180.12,180.06,5.95515798]
[1755820211382,3.93328059,180.12,180.08,0.04246775]
[1755820211584,2.94,180.11,180.08,0.04246775]
[1755820211882,2.94,180.11,180.08,2.94246775]
[1755820212582,2.94,180.15,180.08,0.04246775]
[1755820212787,6.98859232,180.14,180.08,0.04246775]
[1755820212975,2.94,180.12,180.08,0.04246775]
[1755820213177,3.05515798,180.14,180.08,0.04246775]
[1755820213378,2.94,180.12,180.08,0.04246775]
[1755820213573,2.94,180.11,180.08,0.04246775]
[1755820213777,3.05515798,180.14,180.08,0.04246775]
[1755820213997,2.94,180.09,180.08,0.04246775]
[1755820215184,2.94,180.13,180.08,0.04246775]
[1755820215385,6.87204736,180.12,180.09,2.9]
[1755820215582,2.94,180.12,180.09,2.9]
[1755820215783,2.94,180.11,180.09,2.9]
[1755820216686,3.05515798,180.14,180.08,0.04246775]
[1755820216985,2.94,180.1,180.08,2.94246775]
[1755820217180,3.05515798,180.14,180.08,0.04246775]
[1755820217385,6.87206561,180.13,180.09,2.9]
[1755820217685,6.87206561,180.12,180.09,2.9]
[1755820217885,2.94,180.12,180.1,2.9]
[1755820218085,2.94,180.17,180.09,2.9]
[1755820218282,2.94,180.15,180.09,2.9]
[1755820218485,2.94,180.13,180.06,11.50995798]
[1755820218786,3.05515798,180.16,180.1,0.04091923]
[1755820218989,2.94,180.11,180.1,0.04091923]
[1755820222386,2.94,180.13,180.1,2.94091923]
[1755820223181,2.81,180.12,180.1,0.04091923]
[1755820223383,2.81,180.11,180.1,0.04091923]
[1755820230192,6.74305229,180.11,180.1,0.04091923]
[1755820232191,2.81,180.11,180.1,0.04091923]
[1755820232887,2.81,180.11,180.0,3.05515798]
[1755820232888,9.79977946,180.11,180.0,3.05515798]
[1755820233084,2.81,180.08,180.01,2.88]
[1755820233288,2.81,180.06,180.01,2.88]
[1755820233482,6.99031381,180.07,180.01,2.88]
[1755820233483,2.81,180.04,180.01,2.88]
[1755820234297,2.84668449,180.04,180.01,2.88]
[1755820235995,2.84668449,180.04,179.96,3.05515798]
[1755820236191,2.84668449,180.04,180.02,2.88]
[1755820237493,0.03668449,180.04,180.02,2.88]
[1755820240696,0.03668449,180.04,180.01,2.88]
[1755820241798,0.03668449,180.04,180.0,8.61175798]
[1755820242095,0.03668449,180.04,180.03,2.88]
[1755820251310,0.03668449,180.04,179.99,3.05515798]
[1755820251614,2.84668449,180.04,180.01,2.88]
[1755820252113,0.03668449,180.04,179.97,3.05515798]
[1755820252416,2.84668449,180.04,179.98,2.88]
[1755820253212,2.84668449,180.04,179.95,3.05515798]
[1755820253213,2.83,180.02,179.94,511.93515798]
[1755820253414,2.83,180.02,179.95,3.04]
[1755820253814,2.83,180.02,179.97,3.04]
[1755820254112,0.04007162,180.0,179.98,3.04]
[1755820254308,0.04007162,180.0,179.99,3.04]
[1755820260117,0.04007162,180.0,179.99,8.5969]
[1755820260320,8.93346526,180.12,180.0,3.04]
[1755820260623,2.83,180.1,180.04,3.04]
[1755820260818,3.94496788,180.09,180.04,3.04]
[1755820261018,3.94496788,180.08,180.02,3.04]
[1755820261316,2.83,180.1,180.03,8.61065798]
[1755820261617,3.94543426,180.09,180.03,8.65338267]
[1755820261921,2.83,180.1,180.06,3.04]
[1755820262121,3.94564018,180.09,180.06,3.04]
[1755820262416,2.83,180.1,180.03,8.65338267]
[1755820262616,2.83,180.1,180.05,3.04]
[1755820262617,3.94585668,180.09,180.05,3.04]
[1755820262817,2.83,180.1,180.05,3.04]
[1755820263017,3.94586525,180.09,180.04,5.5554]
[1755820263317,2.83,180.1,180.07,3.04]
[1755820263516,3.94654405,180.09,180.07,3.04]
[1755820263715,2.83,180.1,180.07,3.04]
[1755820264020,3.94690175,180.09,180.07,3.04]
[1755820264217,2.83,180.1,180.07,3.04]
[1755820264415,3.94732488,180.09,180.07,3.04]
[1755820264615,2.83,180.1,180.07,3.04]
[1755820265017,3.9473193,180.09,180.06,0.04150327]
[1755820265210,2.83,180.12,180.06,0.04150327]
[1755820265411,3.94736005,180.11,180.06,0.04150327]
[1755820265622,2.83,180.09,180.06,3.08150327]
[1755820266922,2.83,180.12,180.06,0.04150327]
[1755820267123,2.83,180.09,180.06,0.04150327]
[1755820268422,2.83,180.09,180.06,3.08150327]
[1755820269224,3.94879601,180.08,180.07,3.04]
[1755820269727,2.83,180.15,180.07,3.05515798]
[1755820269923,3.94942592,180.14,180.08,3.04]
[1755820270124,3.94942592,180.13,180.07,3.05515798]
[1755820270324,3.94942592,180.12,180.1,3.04]
[1755820270524,3.94942592,180.11,180.1,3.04]
[1755820270921,3.94942592,180.12,180.1,3.04]
[1755820271123,3.94942592,180.11,180.1,3.04]
[1755820271426,3.94942592,180.12,180.1,3.04]
[1755820271728,3.94942592,180.12,180.09,3.04]
[1755820271927,2.83,180.16,180.09,3.04]
[1755820272230,3.95006687,180.15,180.09,3.04]
[1755820272432,3.95006687,180.14,180.09,3.04]
[1755820272622,3.95006687,180.13,180.09,8.5938]
[1755820272825,2.83,180.16,180.1,3.04]
[1755820273119,2.83,180.16,180.08,0.04213024]
[1755820273120,2.83,180.19,180.12,8.5929]
[1755820273429,3.9499385,180.18,180.12,3.04]
[1755820273628,3.9499385,180.17,180.12,3.04]
[1755820273825,2.83,180.19,180.13,3.04]
[1755820274125,6.77772666,180.18,180.14,3.04]
[1755820274427,2.83,180.18,180.14,3.04]
[1755820274928,2.83,180.18,180.14,3.07774529]
[1755820275529,2.83,180.18,180.14,0.03774529]
[1755820275719,2.83,180.18,180.15,3.04]
[1755820277227,2.83,180.22,180.14,3.07774529]
[1755820277424,3.9386087,180.21,180.14,3.07774529]
[1755820277621,6.7686087,180.2,180.14,3.07774529]
[1755820277826,6.7686087,180.19,180.15,3.04]
[1755820278032,2.83,180.19,180.16,3.04]
[1755820278631,2.83,180.18,180.14,0.03774529]
[1755820278830,2.83,180.18,180.15,3.04]
[1755820279130,2.83,180.2,180.14,0.03774529]
[1755820279328,2.83,180.18,180.14,3.07774529]
[1755820279529,2.83,180.17,180.14,3.07774529]
[1755820280425,2.83,180.2,180.15,3.04]
[1755820280626,2.83,180.2,180.16,3.04]
[1755820280833,2.83,180.19,180.16,3.04]
[1755820281132,3.05515798,180.21,180.15,3.04]
[1755820281330,5.88515798,180.25,180.17,3.04]
[1755820281527,3.93252599,180.24,180.17,3.04]
[1755820281832,3.93252599,180.23,180.17,3.04]
[1755820282035,2.83,180.25,180.17,3.04]
[1755820282225,3.93257243,180.24,180.19,0.04134513]
[1755820282428,6.76257243,180.23,180.19,3.08134513]
[1755820282733,2.82,180.25,180.19,3.08134513]
[1755820282935,2.82,180.22,180.19,0.04134513]
[1755820283133,2.82,180.22,180.19,2.92134513]
[1755820283735,2.82,180.21,180.19,0.04134513]
[1755820284235,2.82,180.25,180.19,0.04134513]
[1755820284436,2.82,180.23,180.19,2.92134513]
[1755820284735,2.82,180.22,180.19,2.92134513]
[1755820285834,3.05515798,180.26,180.19,0.04134513]
[1755820285835,2.82,180.21,180.19,0.04134513]
[1755820286336,2.82,180.24,180.19,0.04134513]
[1755820286536,3.05515798,180.26,180.19,0.04134513]
[1755820286734,2.82,180.22,180.19,0.04134513]
[1755820287336,2.82,180.22,180.19,2.92134513]
[1755820288437,2.82,180.24,180.2,2.88]
[1755820288634,2.82,180.23,180.2,2.88]
[1755820289137,2.82,180.22,180.2,2.88]
[1755820292238,2.82,180.25,180.2,2.88]
[1755820292431,3.05515798,180.26,180.2,2.88]
[1755820292639,2.82,180.23,180.2,2.88]
[1755820293135,3.05515798,180.26,180.2,2.88]
[1755820293438,2.82,180.22,180.2,2.88]
[1755820293634,2.82,180.22,180.19,2.92134513]
[1755820295140,2.82,180.22,180.2,2.88]
[1755820295643,2.82,180.21,180.19,0.04134513]
[1755820296638,3.05515798,180.25,180.19,0.04134513]
[1755820296941,2.82,180.24,180.19,0.04134513]
[1755820297140,2.82,180.22,180.19,0.04134513]
[1755820297343,2.82,180.2,180.19,0.04134513]
[1755820297641,2.82,180.2,180.14,2.88]
[1755820297841,5.87515798,180.23,180.18,0.04025743]
[1755820298043,2.82,180.22,180.19,2.88]
[1755820298344,2.82,180.22,180.16,5.5515]
[1755820298539,2.82,180.22,180.19,2.92078975]
[1755820299045,2.82,180.29,180.2,2.88]
[1755820299343,2.82,180.24,180.2,2.88]
[1755820299544,2.82,180.23,180.2,2.88]
[1755820299744,2.82,180.23,180.2,2.91895233]
[1755820301743,3.05515798,180.25,180.2,2.91895233]
[1755820301942,2.82,180.23,180.2,2.91895233]
[1755820303740,2.82,180.24,180.2,0.03895233]
[1755820304044,2.82,180.22,180.2,0.03895233]
[1755820304244,6.98422212,180.23,180.2,0.03895233]
[1755820304245,2.82,180.21,180.2,0.03895233]
[1755820306346,2.82,180.23,180.2,2.91895233]
[1755820306549,2.82,180.26,180.2,2.91895233]
[1755820306740,6.75082283,180.25,180.21,2.88]
[1755820306946,3.93082283,180.24,180.21,2.88]
[1755820307244,6.75082283,180.24,180.21,2.88]
[1755820307549,3.05515798,180.27,180.22,2.88]
[1755820307847,6.75259888,180.26,180.22,2.88]
[1755820308038,6.75259888,180.25,180.22,2.88]
[1755820308245,3.93259888,180.24,180.2,0.03895233]
[1755820308442,2.82,180.28,180.22,2.88]
[1755820308645,2.82,180.26,180.22,2.88]
[1755820308845,2.82,180.26,180.21,8.60505798]
[1755820309151,3.05515798,180.3,180.24,2.88]
[1755820309449,2.82,180.27,180.24,2.88]
[1755820309851,2.82,180.27,180.24,2.92212194]
[1755820310244,3.05515798,180.3,180.24,2.92212194]
[1755820310440,2.82,180.28,180.24,2.92212194]
[1755820310649,6.75514776,180.27,180.24,2.92212194]
[1755820310849,2.82,180.27,180.24,2.92212194]
[1755820312859,3.0,180.26,180.24,0.04212194]
[1755820313448,3.93855385,180.25,180.24,0.04212194]
[1755820314344,3.94068564,180.25,180.24,2.95212194]
[1755820314548,3.0,180.29,180.25,2.91]
[1755820314749,6.94102175,180.28,180.25,2.91]
[1755820314950,3.94102175,180.27,180.25,2.91]
[1755820317260,3.0,180.31,180.25,2.91]
[1755820317456,3.94294806,180.3,180.24,5.59112194]
[1755820317663,3.94294806,180.29,180.26,2.91]
[1755820317858,3.0,180.31,180.28,2.91]
[1755820318057,3.9446044,180.3,180.28,2.91]
[1755820318263,3.0,180.34,180.26,2.91]